[Event "31st Roquetas de Mar Open 2020"]
[Site "Roquetas de Mar"]
[Date "2020.01.06"]
[Round "8.11"]
[White "Mieles Palau, Daniel"]
[Black "Espinosa Aranda, Angel"]
[Result "0-1"]
[ECO "A15"]
[WhiteElo "2374"]
[BlackElo "2504"]
[Annotator "RC"]
[PlyCount "38"]
[EventDate "2020.01.02"]
[EventType "swiss"]
[EventCountry "ESP"]
[SourceTitle "playchess.com"]
[Source "ChessBase"]
[SourceQuality "1"]
[TimeControl "5400+30"]

1. c4 {[%emt 0:00:00]} Nf6 {[%emt 0:00:00]} 2. g3 {[%emt 0:01:22]} g6 {[%emt 0:00:25]} 3. Bg2 {[%emt 0:00:14]} Bg7 {[%emt 0:00:08]} 4. Nc3 {[%emt 0:00:37]} O-O {[%emt 0:00:15]} 5. d4 {[%emt 0:02:27]} c5 {[%emt 0:02:01]} 6. Nf3 {[%emt 0:00:35]} cxd4 {[%emt 0:06:03]} 7. Nxd4 {[%emt 0:00:12]} Nc6 {[%emt 0:00:05]} 8. O-O {[%emt 0:00:11]} Qa5 {[%emt 0:00:02]} 9. Nc2 {[%emt 0:09:49]} d6 {[%emt 0:04:35]} 10. Bd2 {[%emt 0:01:52]} Qh5 {[%emt 0:00:36]} 11. e4 {[%emt 0:00:11]} Ng4 {[%emt 0:11:10]} 12. h3 {[%emt 0:02:18]} Nge5 {[%emt 0:00:04]} 13. g4 {[%emt 0:13:47]} Bxg4 {[%emt 0:02:33]} 14. hxg4 {[%emt 0:00:17]} Nxg4 {[%emt 0:00:04]} 15. Bf4 {[%emt 0:00:31]} Be5 {[%emt 0:00:48]} 16. Qd2 {[%emt 0:14:23]} g5 {[%emt 0:09:46]} 17. Bxe5 {[%emt 0:01:23]} Ncxe5 {[%emt 0:00:07]} 18. Rfe1 {[%emt 0:01:23]} f5 {[%emt 0:04:18]} 19. Ne3 {[%emt 0:03:58]} f4 {[%emt 0:02:07]} 0-1

[Event "31st Roquetas de Mar Open 2020"]
[Site "Roquetas de Mar"]
[Date "2020.01.06"]
[Round "8.14"]
[White "Sosa, Tomas"]
[Black "Garcia Moreno, Carlos"]
[Result "1-0"]
[ECO "C50"]
[WhiteElo "2508"]
[BlackElo "2289"]
[Annotator "RC"]
[PlyCount "111"]
[EventDate "2020.01.02"]
[EventType "swiss"]
[EventCountry "ESP"]
[SourceTitle "playchess.com"]
[Source "ChessBase"]
[SourceQuality "1"]
[TimeControl "5400+30"]

1. e4 {[%emt 0:02:33]} e5 {[%emt 0:00:00]} 2. Nf3 {[%emt 0:00:07]} Nc6 {[%emt 0:00:12]} 3. Bc4 {[%emt 0:00:05]} Bc5 {[%emt 0:00:40]} 4. d3 {[%emt 0:00:40]} Nf6 {[%emt 0:00:31]} 5. O-O {[%emt 0:00:29]} h6 {[%emt 0:13:42]} 6. c3 {[%emt 0:00:57]} Bb6 {[%emt 0:01:58]} 7. Nbd2 {[%emt 0:01:19]} O-O {[%emt 0:01:20]} 8. Re1 {[%emt 0:00:52]} d6 {[%emt 0:02:45]} 9. h3 {[%emt 0:03:10]} Ne7 {[%emt 0:06:59]} 10. Nf1 {[%emt 0:01:48]} Ng6 {[%emt 0:00:18]} 11. Ng3 {[%emt 0:00:26]} c6 {[%emt 0:00:38]} 12. Bb3 {[%emt 0:00:40]} Re8 {[%emt 0:05:00]} 13. d4 {[%emt 0:01:37]} Qc7 {[%emt 0:06:33]} 14. Be3 {[%emt 0:06:35]} Be6 {[%emt 0:09:25]} 15. Qd2 {[%emt 0:03:16]} Bxb3 {[%emt 0:16:42]} 16. axb3 {[%emt 0:01:10]} Kh7 {[%emt 0:00:15]} 17. b4 {[%emt 0:08:11]} a6 {[%emt 0:08:33]} 18. c4 {[%emt 0:14:22]} exd4 {[%emt 0:00:26]} 19. Bxd4 {[%emt 0:01:44]} Bxd4 {[%emt 0:00:40]} 20. Qxd4 {[%emt 0:01:24]} Ne5 {[%emt 0:03:26]} 21. Rad1 {[%emt 0:03:54]} c5 {[%emt 0:01:17]} 22. bxc5 {[%emt 0:03:20]} Qxc5 {[%emt 0:00:06]} 23. Qxc5 {[%emt 0:01:29]} dxc5 {[%emt 0:04:53]} 24. Nxe5 {[%emt 0:00:26]} Rxe5 {[%emt 0:00:01]} 25. f4 {[%emt 0:00:58]} Re7 {[%emt 0:00:02]} 26. e5 {[%emt 0:01:48]} Ne8 {[%emt 0:00:01]} 27. Rd5 {[%emt 0:01:41]} Nc7 {[%emt 0:02:04]} 28. Rd6 {[%emt 0:00:50]} Ne6 {[%emt 0:01:22]} 29. f5 {[%emt 0:11:48]} Nd4 {[%emt 0:00:12]} 30. f6 {[%emt 0:00:04]} gxf6 {[%emt 0:01:03]} 31. Rxf6 {[%emt 0:00:09]} Rg8 {[%emt 0:01:14]} 32. Kf2 {[%emt 0:03:00]} Rg5 {[%emt 0:03:11]} 33. Re4 {[%emt 0:01:30]} Kg7 {[%emt 0:02:36]} 34. Rh4 {[%emt 0:01:21]} Rexe5 {[%emt 0:00:48]} 35. Rfxh6 {[%emt 0:01:56]} Rxg3 {[%emt 0:02:46]} 36. Rh7+ {[%emt 0:00:16]} Kf6 {[%emt 0:00:09]} 37. Kxg3 {[%emt 0:01:23]} Nf5+ {[%emt 0:00:06]} 38. Kf4 {[%emt 0:03:04]} Nxh4 {[%emt 0:00:07]} 39. Rxh4 {[%emt 0:00:02]} Re2 {[%emt 0:03:19]} 40. Rh6+ {[%emt 0:00:26]} Kg7 {[%emt 0:00:02]} 41. Rb6 {[%emt 0:00:08]} Rxg2 {[%emt 0:00:02]} 42. Rxb7 {[%emt 0:00:07]} Rc2 {[%emt 0:00:25]} 43. b3 {[%emt 0:00:48]} a5 {[%emt 0:00:20]} 44. Ra7 {[%emt 0:00:57]} Rc3 {[%emt 0:01:01]} 45. h4 {[%emt 0:00:39]} Rh3 {[%emt 0:01:05]} 46. Kg4 {[%emt 0:02:27]} Rxb3 {[%emt 0:00:07]} 47. Rxa5 {[%emt 0:00:04]} Re3 {[%emt 0:01:34]} 48. Rxc5 {[%emt 0:00:02]} Re4+ {[%emt 0:00:07]} 49. Kg3 {[%emt 0:03:24]} Kh6 {[%emt 0:02:18]} 50. Rc8 {[%emt 0:03:06]} Kh5 {[%emt 0:01:32]} 51. Rh8+ {[%emt 0:01:15]} Kg6 {[%emt 0:00:02]} 52. Rg8+ {[%emt 0:00:06]} Kh6 {[%emt 0:01:11]} 53. Rg4 {[%emt 0:00:13]} Re3+ {[%emt 0:00:36]} 54. Kf4 {[%emt 0:01:45]} Rc3 {[%emt 0:00:18]} 55. Ke5 {[%emt 0:00:25]} Rf3 {[%emt 0:00:57]} 56. Rf4 {[%emt 0:00:38]} 1-0

[Event "31st Roquetas de Mar Open 2020"]
[Site "Roquetas de Mar"]
[Date "2020.01.06"]
[Round "8.15"]
[White "Villanueva, Mario"]
[Black "Rohit S"]
[Result "1/2-1/2"]
[ECO "B90"]
[WhiteElo "2488"]
[BlackElo "2267"]
[Annotator "RC"]
[PlyCount "75"]
[EventDate "2020.01.02"]
[EventType "swiss"]
[EventCountry "ESP"]
[SourceTitle "playchess.com"]
[Source "ChessBase"]
[SourceQuality "1"]
[TimeControl "5400+30"]

1. e4 c5 2. Nf3 d6 3. d4 cxd4 4. Nxd4 Nf6 5. Nc3 a6 6. Be3 e5 7. Nb3 Be6 8. h3 Be7 9. f4 exf4 10. Bxf4 Nc6 11. Qe2 Ne5 12. O-O-O Qc7 13. g4 O-O 14. Kb1 b5 15. Nd5 Bxd5 16. exd5 Nfd7 17. Nd4 Rfe8 18. Qd2 Bf8 19. b3 Ng6 20. Bg3 Nc5 21. Bg2 Ne4 22. Bxe4 Rxe4 23. Rhe1 Rxe1 24. Rxe1 Ne7 25. Nf5 Nxf5 26. gxf5 Be7 27. Bf2 Bf6 28. Bd4 Bxd4 29. Qxd4 Rc8 30. Qe4 h6 31. f6 g6 32. Re2 Qc3 33. Qf4 Qxh3 34. Rh2 Qc3 35. Qxh6 Qe1+ 36. Kb2 Qc3+ 37. Kb1 Qe1+ 38. Kb2 1/2-1/2

[Event "31st Roquetas de Mar Open 2020"]
[Site "Roquetas de Mar"]
[Date "2020.01.06"]
[Round "8.16"]
[White "Silva Lucena, Cristian"]
[Black "Camacho Collados, Jose"]
[Result "1-0"]
[ECO "C43"]
[WhiteElo "2217"]
[BlackElo "2419"]
[Annotator "RC"]
[PlyCount "109"]
[EventDate "2020.01.02"]
[EventType "swiss"]
[EventCountry "ESP"]
[SourceTitle "playchess.com"]
[Source "ChessBase"]
[SourceQuality "1"]
[TimeControl "5400+30"]

1. e4 {[%emt 0:02:40]} e5 {[%emt 0:00:00]} 2. Nf3 {[%emt 0:00:29]} Nf6 {[%emt 0:00:00]} 3. d4 {[%emt 0:00:13]} Nxe4 {[%emt 0:00:59]} 4. dxe5 {[%emt 0:00:13]} d5 {[%emt 0:02:05]} 5. Bd3 {[%emt 0:00:15]} Nc5 {[%emt 0:01:25]} 6. O-O {[%emt 0:00:06]} Bg4 {[%emt 0:01:11]} 7. h3 {[%emt 0:02:05]} Bh5 {[%emt 0:01:29]} 8. Re1 {[%emt 0:01:47]} Be7 {[%emt 0:02:16]} 9. Be2 {[%emt 0:10:14]} O-O {[%emt 0:05:25]} 10. Nc3 {[%emt 0:04:55]} Bxf3 {[%emt 0:06:27]} 11. Bxf3 {[%emt 0:00:35]} c6 {[%emt 0:00:02]} 12. Ne2 {[%emt 0:01:12]} Ne6 {[%emt 0:09:10]} 13. Nd4 {[%emt 0:01:58]} Nxd4 {[%emt 0:05:19]} 14. Qxd4 {[%emt 0:00:04]} Bg5 {[%emt 0:00:09]} 15. c4 {[%emt 0:01:45]} dxc4 {[%emt 0:09:14]} 16. Qxc4 {[%emt 0:00:47]} Nd7 {[%emt 0:05:09]} 17. e6 {[%emt 0:04:18]} Nb6 {[%emt 0:09:19]} 18. Qc5 {[%emt 0:04:06]} Be7 {[%emt 0:01:00]} 19. Qf5 {[%emt 0:01:17]} Bf6 {[%emt 0:02:22]} 20. Bf4 {[%emt 0:06:41]} fxe6 {[%emt 0:02:28]} 21. Qxe6+ {[%emt 0:02:52]} Kh8 {[%emt 0:00:02]} 22. Rad1 {[%emt 0:02:59]} Qc8 {[%emt 0:00:10]} 23. b3 {[%emt 0:02:59]} Qxe6 {[%emt 0:03:46]} 24. Rxe6 {[%emt 0:00:05]} Kg8 {[%emt 0:01:17]} 25. a4 {[%emt 0:02:49]} Rad8 {[%emt 0:01:14]} 26. Bd6 {[%emt 0:02:16]} Rf7 {[%emt 0:05:56]} 27. a5 {[%emt 0:05:48]} Nd5 {[%emt 0:00:44]} 28. a6 {[%emt 0:00:40]} bxa6 {[%emt 0:01:13]} 29. Bg3 {[%emt 0:01:14]} Rfd7 {[%emt 0:08:10]} 30. Rxc6 {[%emt 0:01:39]} Nb4 {[%emt 0:01:30]} 31. Rxd7 {[%emt 0:00:29]} Rxd7 {[%emt 0:00:08]} 32. Rc4 {[%emt 0:01:40]} a5 {[%emt 0:00:18]} 33. Bg4 {[%emt 0:00:33]} Re7 {[%emt 0:06:15]} 34. Rc5 {[%emt 0:00:48]} Bd4 {[%emt 0:01:06]} 35. Rxa5 {[%emt 0:01:22]} Re1+ {[%emt 0:01:54]} 36. Kh2 {[%emt 0:00:02]} Bb6 {[%emt 0:00:09]} 37. Rf5 {[%emt 0:00:46]} g6 {[%emt 0:00:28]} 38. Rf6 {[%emt 0:01:11]} Nd3 {[%emt 0:02:20]} 39. Be6+ {[%emt 0:07:12]} Kg7 {[%emt 0:00:01]} 40. Rf7+ {[%emt 0:00:09]} Kh6 {[%emt 0:03:27]} 41. Bc4 {[%emt 0:02:31]} Nb2 {[%emt 0:03:15]} 42. Bb5 {[%emt 0:02:20]} g5 {[%emt 0:00:51]} 43. h4 {[%emt 0:00:51]} Kg6 {[%emt 0:00:21]} 44. Rd7 {[%emt 0:01:10]} gxh4 {[%emt 0:00:32]} 45. Bxh4 {[%emt 0:00:34]} Re5 {[%emt 0:00:50]} 46. Bc6 {[%emt 0:00:46]} Re6 {[%emt 0:00:55]} 47. Bd5 {[%emt 0:00:20]} Re5 {[%emt 0:00:35]} 48. f3 {[%emt 0:00:32]} h5 {[%emt 0:00:24]} 49. Be4+ {[%emt 0:00:19]} Rxe4 {[%emt 0:00:33]} 50. fxe4 {[%emt 0:00:01]} Be3 {[%emt 0:00:12]} 51. Be1 {[%emt 0:00:27]} Bf4+ {[%emt 0:00:17]} 52. g3 {[%emt 0:00:07]} Be5 {[%emt 0:00:04]} 53. Rd5 {[%emt 0:00:17]} Bc7 {[%emt 0:00:24]} 54. Bc3 {[%emt 0:00:11]} h4 {[%emt 0:00:08]} 55. Bxb2 {[%emt 0:00:08]} 1-0

[Event "31st Roquetas de Mar Open 2020"]
[Site "Roquetas de Mar"]
[Date "2020.01.07"]
[Round "9.1"]
[White "Bjerre, Jonas Buhl"]
[Black "Bernadskiy, Vitaliy"]
[Result "1/2-1/2"]
[ECO "B33"]
[WhiteElo "2535"]
[BlackElo "2588"]
[Annotator "RC"]
[PlyCount "62"]
[EventDate "2020.01.02"]
[EventType "swiss"]
[EventCountry "ESP"]
[SourceTitle "playchess.com"]
[Source "ChessBase"]
[SourceQuality "1"]
[TimeControl "5400+30"]

1. e4 c5 2. Nf3 Nc6 3. d4 cxd4 4. Nxd4 Nf6 5. Nc3 e5 6. Ndb5 d6 7. Bg5 a6 8. Na3 b5 9. Nd5 Be7 10. Bxf6 Bxf6 11. c4 b4 12. Nc2 O-O 13. g3 Rb8 14. Qd3 g6 15. Nxf6+ Qxf6 16. Bg2 Bb7 17. O-O a5 18. Rad1 Rfd8 19. b3 Ra8 20. Qe3 Nb8 21. Qb6 Qe7 22. c5 Ra6 23. Qb5 Qd7 24. Qxd7 Nxd7 25. Rxd6 Rxd6 26. cxd6 Nc5 27. Rd1 Bxe4 28. Ne3 Bd3 29. Rc1 Ne6 30. Ng4 Nd4 31. Rc7 Rxd6 1/2-1/2